fUSD/lending_fUSD_20250728
["ID","MTS","AMOUNT","RATE_DAILY","PERIOD"]
[375494784,1753661453821,-400.0,0.00021917,2]
[375494785,1753661453830,-581.47,0.00021917,2]
[375494786,1753661453840,-400.0,0.00021917,2]
[375494787,1753661453849,-400.0,0.00021917,2]
[375494788,1753661453858,-535.79,0.00021917,2]
[375494789,1753661453868,-400.0,0.00021917,2]
[375494790,1753661453877,-400.0,0.00021917,2]
[375494791,1753661453888,-400.0,0.00021917,2]
[375494792,1753661453899,-400.0,0.00021917,2]
[375494793,1753661453909,-1616.67,0.00021917,2]
[375494794,1753661453918,-501.76949869,0.00021917,2]
[375494795,1753661453928,-642.14,0.00021917,2]
[375494796,1753661453937,-400.0,0.00021917,2]
[375494797,1753661453948,-642.14,0.00021917,2]
[375494798,1753661453959,-642.14,0.00021917,2]
[375494799,1753661453968,-642.14,0.00021917,2]
[375494800,1753661453978,-642.14,0.00021917,2]
[375494801,1753661453988,-1051.27,0.00021917,2]
[375494802,1753661453998,-1474.67,0.00021917,2]
[375494803,1753661454007,-642.14,0.00021917,2]
[375494804,1753661454016,-642.14,0.00021917,2]
[375494805,1753661454026,-642.14,0.00021917,2]
[375494806,1753661454035,-642.14,0.00021917,2]
[375494807,1753661454045,-818.03,0.00021917,2]
[375494808,1753661454055,-642.14,0.00021917,2]
[375494809,1753661454064,-642.14,0.00021917,2]
[375494810,1753661454073,-642.14,0.00021917,2]
[375494811,1753661454083,-642.14,0.00021917,2]
[375494812,1753661454094,-642.14,0.00021917,2]
[375494813,1753661454104,-400.0,0.00021917,2]
[375494814,1753661454113,-400.0,0.00021917,2]
[375494815,1753661454123,-642.14,0.00021917,2]
[375494816,1753661454132,-642.14,0.00021917,2]
[375494817,1753661454142,-642.14,0.00021917,2]
[375494818,1753661454152,-642.14,0.00021917,2]
[375494819,1753661454163,-4454.0,0.00021917,2]
[375494820,1753661454173,-760.47,0.00021917,2]
[375494821,1753661454185,-4495.56,0.00021917,2]
[375494822,1753661454194,-1166.3,0.00021917,2]
[375494823,1753661454206,-400.0,0.00021917,2]
[375494824,1753661454216,-500.0,0.00021917,2]
[375494825,1753661454225,-400.0,0.00021917,2]
[375494826,1753661454235,-500.0,0.00021917,2]
[375494827,1753661454245,-500.0,0.00021917,2]
[375494828,1753661454254,-400.0,0.00021917,2]
[375494829,1753661454265,-400.0,0.00021917,2]
[375494830,1753661454275,-400.0,0.00021917,2]
[375494831,1753661454284,-400.0,0.00021917,2]
[375494832,1753661454294,-700.987758,0.00021917,2]
[375494833,1753661454304,-2960.72,0.00021917,2]
[375494834,1753661454316,-995.04,0.00021917,2]
[375494835,1753661454326,-2426.33,0.00021917,2]
[375494836,1753661454336,-223.37450346,0.00021917,2]
[375494837,1753661454345,-1275.9,0.00021917,2]
[375494838,1753661454355,-274.52126639,0.00021917,2]
[375494839,1753661454365,-400.0,0.00021917,2]
[375494840,1753661454375,-2044.51,0.00021917,2]
[375494841,1753661454384,-500.0,0.00021917,2]
[375494842,1753661454394,-400.0,0.00021917,2]
[375494843,1753661454403,-400.0,0.00021917,2]
[375494844,1753661454413,-400.0,0.00021917,2]
[375494845,1753661454423,-1320.75,0.00021917,2]
[375494846,1753661454433,-869.93,0.00021917,2]
[375494847,1753661454443,-400.0,0.00021917,2]
[375494848,1753661454453,-3914.39,0.00021917,2]
[375494849,1753661454463,-5060.4,0.00021917,2]
[375494850,1753661454472,-400.0,0.00021917,2]
[375494851,1753661454482,-1378.83,0.00021917,2]
[375494852,1753661454492,-400.0,0.00021917,2]
[375494853,1753661454502,-11278.52,0.00021917,2]
[375494854,1753661454512,-5001.69,0.00021917,2]
[375494855,1753661454522,-1545.16,0.00021917,2]
[375494856,1753661454534,-2215.78,0.00021917,2]
[375494857,1753661454544,-2232.97,0.00021917,2]
[375494858,1753661454554,-1257.76,0.00021917,2]
[375494859,1753661454566,-441.88,0.00021917,2]
[375494860,1753661454575,-444.39270948,0.00021917,2]
[375494861,1753661454585,-812.92,0.00021917,2]
[375494862,1753661454595,-517.25,0.00021917,2]
[375494863,1753661454605,-400.0,0.00021917,2]
[375494864,1753661454615,-400.0,0.00021917,2]
[375494865,1753661454625,-3591.44,0.00021917,2]
[375494866,1753661454635,-400.0,0.00021917,2]
[375494867,1753661454644,-400.0,0.00021917,2]
[375494868,1753661454653,-400.0,0.00021917,2]
[375494869,1753661454663,-3216.29,0.00021917,2]
[375494870,1753661454672,-1858.46,0.00021917,2]
[375494871,1753661454682,-1252.77,0.00021917,2]
[375494872,1753661454692,-774.15,0.00021917,2]
[375494873,1753661454703,-400.0,0.00021917,2]
[375494874,1753661454713,-728.97,0.00021917,2]
[375494875,1753661454724,-500.0,0.00021917,2]
[375494876,1753661454734,-500.0,0.00021917,2]
[375494877,1753661454744,-500.0,0.00021917,2]
[375494878,1753661454753,-1653.41,0.00021917,2]
[375494879,1753661454763,-400.0,0.00021917,2]
[375494880,1753661454772,-400.0,0.00021917,2]
[375494881,1753661454782,-400.0,0.00021917,2]
[375494882,1753661454791,-2461.83,0.00021917,2]
[375494883,1753661454801,-4106.32,0.00021917,2]
[375494884,1753661454813,-6548.6,0.00021917,2]
[375494885,1753661454822,-400.0,0.00021917,2]
[375494886,1753661454832,-466.09114106,0.00021917,2]
[375494887,1753661454842,-400.0,0.00021917,2]
[375494888,1753661454852,-400.0,0.00021917,2]
[375494889,1753661454862,-400.0,0.00021917,2]
[375494890,1753661454871,-6129.59,0.00021917,2]
[375494891,1753661454881,-400.0,0.00021917,2]
[375494892,1753661454891,-1567.51,0.00021917,2]
[375494893,1753661454900,-400.0,0.00021917,2]
[375494894,1753661454910,-1752.24,0.00021917,2]
[375494895,1753661454920,-3052.81,0.00021917,2]
[375494896,1753661454929,-400.0,0.00021917,2]
[375494897,1753661454939,-754.14,0.00021917,2]
[375494898,1753661454948,-400.0,0.00021917,2]
[375494899,1753661454958,-400.0,0.00021917,2]
[375494900,1753661454967,-7078.19,0.00021917,2]
[375494901,1753661454977,-1342.64,0.00021917,2]
[375494902,1753661454986,-488.62,0.00021917,2]
[375494903,1753661454995,-400.0,0.00021917,2]
[375494904,1753661455005,-400.0,0.00021917,2]
[375494905,1753661455015,-1008.91,0.00021917,2]
[375494906,1753661455024,-4805.16,0.00021917,2]
[375494907,1753661455034,-401.10535455,0.00021917,2]
[375494908,1753661455043,-400.0,0.00021917,2]
[375494909,1753661455052,-400.0,0.00021917,2]
[375494910,1753661455062,-425.76,0.00021917,2]
[375494911,1753661455071,-1099.69,0.00021917,2]
[375494912,1753661455081,-1279.63,0.00021917,2]
[375494913,1753661455090,-400.0,0.00021917,2]
[375494914,1753661455099,-400.0,0.00021917,2]
[375494915,1753661455109,-6909.6,0.00021917,2]
[375494916,1753661455119,-1387.12,0.00021917,2]
[375494917,1753661455129,-400.0,0.00021917,2]
[375494918,1753661455138,-317.86217207,0.00021917,2]
[375494919,1753661455147,-5616.35,0.00021917,2]
[375494920,1753661455157,-400.0,0.00021917,2]
[375494921,1753661455167,-400.0,0.00021917,2]
[375494922,1753661455176,-400.0,0.00021917,2]
[375494923,1753661455186,-3053.87,0.00021917,2]
[375494924,1753661455195,-400.0,0.00021917,2]
[375494925,1753661455205,-6830.68,0.00021917,2]
[375494926,1753661455215,-400.0,0.00021917,2]
[375494927,1753661455224,-4057.04,0.00021917,2]
[375494928,1753661455234,-400.0,0.00021917,2]
[375494929,1753661455244,-400.0,0.00021917,2]
[375494930,1753661455253,-780.87,0.00021917,2]
[375494931,1753661455263,-439.31243359,0.00021917,2]
[375494932,1753661455272,-400.0,0.00021917,2]
[375494933,1753661455282,-400.0,0.00021917,2]
[375494934,1753661455291,-400.0,0.00021917,2]
[375494935,1753661455301,-2005.96,0.00021917,2]
[375494936,1753661455311,-400.0,0.00021917,2]
[375494937,1753661455321,-400.0,0.00021917,2]
[375494938,1753661455332,-6119.96,0.00021917,2]
[375494939,1753661455341,-1543.42,0.00021917,2]
[375494940,1753661455351,-167.98536562,0.00021917,2]
[375494941,1753661455360,-1554.85,0.00021917,2]
[375494942,1753661455370,-793.37,0.00021917,2]
[375494943,1753661455380,-1377.86,0.00021917,2]
[375494944,1753661455390,-475.58,0.00021917,2]
[375494945,1753661455400,-400.0,0.00021917,2]
[375494946,1753661455410,-400.0,0.00021917,2]
[375494947,1753661455424,-1582.78,0.00021917,2]
[375494948,1753661455434,-2365.08,0.00021917,2]
[375494949,1753661455443,-1214.93,0.00021917,2]
[375494950,1753661455453,-853.45,0.00021917,2]
[375494951,1753661455462,-400.0,0.00021917,2]
[375494952,1753661455472,-400.0,0.00021917,2]
[375494953,1753661455482,-125862.45,0.00021917,2]
[375494954,1753661455491,-822.85,0.00021917,2]
[375494955,1753661455501,-7530.15,0.00021917,2]
[375494956,1753661455510,-523.66,0.00021917,2]
[375494957,1753661455519,-1512.27,0.00021917,2]
[375494958,1753661455529,-400.0,0.00021917,2]
[375494959,1753661455540,-686.7,0.00021917,2]
[375494960,1753661455550,-858.7,0.00021917,2]
[375494961,1753661455560,-400.0,0.00021917,2]
[375494962,1753661455569,-2812.59,0.00021917,2]
[375494963,1753661455579,-2719.45,0.00021917,2]
[375494964,1753661455589,-400.0,0.00021917,2]
[375494965,1753661455598,-2803.97,0.00021917,2]
[375494966,1753661455609,-481.70154303,0.00021917,2]
[375494967,1753661455619,-5578.36,0.00021917,2]
[375494968,1753661455628,-796.21,0.00021917,2]
[375494969,1753661455638,-401.20804608,0.00021917,2]
[375494970,1753661455647,-400.0,0.00021917,2]
[375494971,1753661455656,-5089.48,0.00021917,2]
[375494972,1753661455666,-2777.64,0.00021917,2]
[375494973,1753661455676,-400.0,0.00021917,2]
[375494974,1753661455685,-3857.91,0.00021917,2]
[375494975,1753661455694,-10805.05,0.00021917,2]
[375494976,1753661455703,-9991.06,0.00021917,2]
[375494977,1753661455713,-766.05,0.00021917,2]
[375494978,1753661455722,-536.52,0.00021917,2]
[375494979,1753661455732,-2371.96,0.00021917,2]
[375494980,1753661455742,-400.0,0.00021917,2]
[375494981,1753661455752,-4353.53,0.00021917,2]
[375494982,1753661455762,-5397.52,0.00021917,2]
[375494983,1753661455771,-1065.34,0.00021917,2]
[375494984,1753661455781,-400.0,0.00021917,2]
[375494985,1753661455790,-400.0,0.00021917,2]
[375494986,1753661455800,-618.135343,0.00021917,2]
[375494987,1753661455809,-12362.32,0.00021917,2]
[375494988,1753661455819,-400.0,0.00021917,2]
[375494989,1753661455829,-2065.39,0.00021917,2]
[375494990,1753661455839,-400.0,0.00021917,2]
[375494991,1753661455849,-400.0,0.00021917,2]
[375494992,1753661455858,-400.0,0.00021917,2]
[375494993,1753661455868,-400.0,0.00021917,2]
[375494994,1753661455877,-1497.62,0.00021917,2]
[375494995,1753661455887,-400.0,0.00021917,2]
[375494996,1753661455897,-3263.42,0.00021917,2]
[375494997,1753661455907,-400.0,0.00021917,2]
[375494998,1753661455916,-400.0,0.00021917,2]
[375494999,1753661455926,-1544.26,0.00021917,2]
[375495000,1753661455935,-1234.11,0.00021917,2]
[375495001,1753661455945,-2278.29,0.00021917,2]
[375495002,1753661455955,-400.0,0.00021917,2]
[375495003,1753661455964,-400.0,0.00021917,2]
[375495004,1753661455974,-400.0,0.00021917,2]
[375495005,1753661455983,-400.0,0.00021917,2]
[375495006,1753661455992,-2603.73,0.00021917,2]
[375495007,1753661456002,-400.0,0.00021917,2]
[375495008,1753661456011,-1026.97,0.00021917,2]
[375495009,1753661456020,-1282.26,0.00021917,2]
[375495010,1753661456030,-378.80836374,0.00021917,2]
[375495011,1753661456144,-400.0,0.00021917,2]
[375495012,1753661456154,-14223.51,0.00021917,2]
[375495013,1753661456163,-3059.57,0.00021917,2]
[375495014,1753661456172,-400.0,0.00021917,2]
[375495015,1753661456181,-403.39,0.00021917,2]
[375495016,1753661456190,-23219.59,0.00021917,2]
[375495017,1753661456199,-1264.27,0.00021917,2]
[375495018,1753661456209,-837.92,0.00021917,2]
[375495019,1753661456218,-400.0,0.00021917,2]
[375495020,1753661456227,-2982.64,0.00021917,2]
[375495021,1753661456236,-4328.49,0.00021917,2]
[375495022,1753661456246,-6740.01,0.00021917,2]
[375495023,1753661456255,-4058.55,0.00021917,2]
[375495024,1753661456265,-2948.12,0.00021917,2]
[375495025,1753661456274,-5378.67,0.00021917,2]
[375495026,1753661456283,-1322.4,0.00021917,2]
[375495027,1753661456293,-9101.82,0.00021917,2]
[375495028,1753661456303,-3160.32,0.00021917,2]
[375495029,1753661456312,-409.4,0.00021917,2]
[375495030,1753661456322,-400.0,0.00021917,2]
[375495031,1753661456331,-400.0,0.00021917,2]
[375495032,1753661456342,-400.0,0.00021917,2]
[375495033,1753661456352,-617.737129,0.00021917,2]
[375495034,1753661456361,-400.0,0.00021917,2]
[375495035,1753661456371,-2133.41,0.00021917,2]
[375495036,1753661456380,-400.0,0.00021917,2]
[375495037,1753661456389,-771.33,0.00021917,2]
[375495038,1753661456399,-48679.81,0.00021917,2]
[375495039,1753661456408,-500.0,0.00021917,2]
[375495040,1753661456418,-500.0,0.00021917,2]
[375495041,1753661456427,-400.0,0.00021917,2]
[375495042,1753661456437,-400.0,0.00021917,2]
[375495043,1753661456452,-400.0,0.00021917,2]
[375495044,1753661456464,-461.71656319,0.00021917,2]
[375495045,1753661456474,-13637.46,0.00021917,2]
[375495046,1753661456483,-1685.14,0.00021917,2]
[375495047,1753661456494,-572.13,0.00021917,2]
[375495048,1753661456504,-1687.43,0.00021917,2]
[375495049,1753661456513,-506.54688217,0.00021917,2]
[375495050,1753661456523,-3332.51,0.00021917,2]
[375495051,1753661456535,-400.0,0.00021917,2]
[375495052,1753661456545,-518.26,0.00021917,2]
[375495053,1753661456559,-4796.52,0.00021917,2]
[375495054,1753661456572,-400.0,0.00021917,2]
[375495055,1753661456583,-400.0,0.00021917,2]
[375495056,1753661456592,-2967.24,0.00021917,2]
[375495057,1753661456603,-652.27,0.00021917,2]
[375495058,1753661456613,-400.0,0.00021917,2]
[375495059,1753661456623,-665.02,0.00021917,2]
[375495060,1753661456633,-400.0,0.00021917,2]
[375495061,1753661456643,-1042.88,0.00021917,2]
[375495062,1753661456653,-400.0,0.00021917,2]
[375495063,1753661456662,-16744.38,0.00021917,2]
[375495064,1753661456671,-494.83,0.00021917,2]
[375495065,1753661456681,-400.0,0.00021917,2]
[375495066,1753661456690,-1403.08,0.00021917,2]
[375495067,1753661456699,-3346.67,0.00021917,2]
[375495068,1753661456709,-400.0,0.00021917,2]
[375495069,1753661456718,-400.0,0.00021917,2]
[375495070,1753661456727,-4258.41,0.00021917,2]
[375495071,1753661456737,-2804.45,0.00021917,2]
[375495072,1753661456746,-1428.59,0.00021917,2]
[375495073,1753661456756,-1415.49,0.00021917,2]
[375495074,1753661456766,-6418.84,0.00021917,2]
[375495075,1753661456775,-400.0,0.00021917,2]
[375495076,1753661456786,-715.717735,0.00021917,2]
[375495077,1753661456795,-2812.94,0.00021917,2]
[375495078,1753661456805,-400.0,0.00021917,2]
[375495079,1753661456814,-623.29,0.00021917,2]
[375495080,1753661456823,-2244.08,0.00021917,2]
[375495081,1753661456832,-3758.41,0.00021917,2]
[375495082,1753661456842,-1826.19,0.00021917,2]
[375495083,1753661456851,-400.0,0.00021917,2]
[375495084,1753661456861,-6297.03,0.00021917,2]
[375495085,1753661456870,-400.0,0.00021917,2]
[375495086,1753661456880,-400.0,0.00021917,2]
[375495087,1753661456889,-400.0,0.00021917,2]
[375495088,1753661456899,-2978.0,0.00021917,2]
[375495089,1753661456908,-400.0,0.00021917,2]
[375495090,1753661456917,-892.06,0.00021917,2]
[375495091,1753661456927,-761.79,0.00021917,2]
[375495092,1753661456936,-667.53,0.00021917,2]
[375495093,1753661456946,-400.0,0.00021917,2]
[375495094,1753661456955,-1302.82,0.00021917,2]
[375495095,1753661456964,-400.0,0.00021917,2]
[375495096,1753661456974,-4274.04,0.00021917,2]
[375495097,1753661456984,-4783.39,0.00021917,2]
[375495098,1753661456993,-2738.27,0.00021917,2]
[375495099,1753661457003,-400.0,0.00021917,2]
[375495100,1753661457012,-1105.74,0.00021917,2]
[375495101,1753661457022,-5026.73,0.00021917,2]
[375495102,1753661457031,-436.94,0.00021917,2]
[375495103,1753661457040,-2653.92,0.00021917,2]
[375495104,1753661457050,-400.0,0.00021917,2]
[375495105,1753661457060,-400.0,0.00021917,2]
[375495106,1753661457071,-400.0,0.00021917,2]
[375495107,1753661457081,-679.58,0.00021917,2]
[375495108,1753661457091,-1395.89,0.00021917,2]
[375495109,1753661457100,-14312.8,0.00021917,2]
[375495110,1753661457110,-400.0,0.00021917,2]
[375495111,1753661457120,-400.0,0.00021917,2]
[375495112,1753661457130,-1326.08,0.00021917,2]
[375495113,1753661457140,-400.0,0.00021917,2]
[375495114,1753661457149,-827.572355,0.00021917,2]
[375495115,1753661457158,-8346.4,0.00021917,2]
[375495116,1753661457167,-400.0,0.00021917,2]
[375495117,1753661457177,-1740.2,0.00021917,2]
[375495118,1753661457187,-3287.0,0.00021917,2]
[375495119,1753661457197,-492.53,0.00021917,2]
[375495120,1753661457207,-6231.27,0.00021917,2]
[375495121,1753661457216,-400.0,0.00021917,2]
[375495122,1753661457227,-2528.33,0.00021917,2]
[375495123,1753661457236,-400.0,0.00021917,2]
[375495124,1753661457246,-1175.62,0.00021917,2]
[375495125,1753661457256,-3317.8,0.00021917,2]
[375495126,1753661457265,-400.0,0.00021917,2]
[375495127,1753661457275,-400.0,0.00021917,2]
[375495128,1753661457285,-3320.28,0.00021917,2]
[375495129,1753661457294,-570.87,0.00021917,2]
[375495130,1753661457303,-400.0,0.00021917,2]
[375495131,1753661457314,-400.0,0.00021917,2]
[375495132,1753661457323,-2812.95,0.00021917,2]
[375495133,1753661457332,-6638.04,0.00021917,2]
[375495134,1753661457344,-400.0,0.00021917,2]
[375495135,1753661457355,-3231.93,0.00021917,2]
[375495136,1753661457364,-4218.84,0.00021917,2]
[375495137,1753661457374,-1677.65,0.00021917,2]
[375495138,1753661457383,-400.0,0.00021917,2]
[375495139,1753661457393,-1287.19,0.00021917,2]
[375495140,1753661457402,-400.0,0.00021917,2]
[375495141,1753661457412,-400.0,0.00021917,2]
[375495142,1753661457421,-1516.07,0.00021917,2]
[375495143,1753661457430,-898.818686,0.00021917,2]
[375495144,1753661457440,-516.78,0.00021917,2]
[375495145,1753661457449,-1276.06,0.00021917,2]
[375495146,1753661457459,-2300.23,0.00021917,2]
[375495147,1753661457468,-4384.64,0.00021917,2]
[375495148,1753661457477,-3671.82,0.00021917,2]
[375495149,1753661457487,-262.50831174,0.00021917,2]
[375495150,1753661457496,-1999.81,0.00021917,2]
[375495151,1753661457505,-400.0,0.00021917,2]
[375495152,1753661457515,-400.0,0.00021917,2]
[375495153,1753661457524,-1124.19,0.00021917,2]
[375495154,1753661457539,-400.0,0.00021917,2]
[375495155,1753661457548,-4510.05,0.00021917,2]
[375495156,1753661457558,-400.0,0.00021917,2]
[375495157,1753661457569,-2053.2,0.00021917,2]
[375495158,1753661457579,-18174.46,0.00021917,2]
[375495159,1753661457588,-400.0,0.00021917,2]
[375495160,1753661457599,-400.0,0.00021917,2]
[375495161,1753661457609,-400.0,0.00021917,2]
[375495162,1753661457619,-1546.72,0.00021917,2]
[375495163,1753661457629,-1260.46,0.00021917,2]
[375495164,1753661457638,-3614.74,0.00021917,2]
[375495165,1753661457648,-872.71,0.00021917,2]
[375495166,1753661457657,-910.77,0.00021917,2]
[375495167,1753661457667,-400.0,0.00021917,2]
[375495168,1753661457677,-872.84,0.00021917,2]
[375495169,1753661457686,-400.0,0.00021917,2]
[375495170,1753661457695,-2483.41,0.00021917,2]
[375495171,1753661457705,-442.3,0.00021917,2]
[375495172,1753661457714,-400.0,0.00021917,2]
[375495173,1753661457724,-4039.2,0.00021917,2]
[375495174,1753661457733,-1729.85,0.00021917,2]
[375495175,1753661457743,-3893.41,0.00021917,2]
[375495176,1753661457753,-400.0,0.00021917,2]
[375495177,1753661457762,-7188.1,0.00021917,2]
[375495178,1753661457773,-4112.52,0.00021917,2]
[375495179,1753661457783,-915.03,0.00021917,2]
[375495180,1753661457793,-385.72807058,0.00021917,2]
[375495181,1753661457803,-400.0,0.00021917,2]
[375495182,1753661457812,-1846.7,0.00021917,2]
[375495183,1753661457822,-400.0,0.00021917,2]
[375495184,1753661457831,-28188.55,0.00021917,2]
[375495185,1753661457841,-1007.73,0.00021917,2]
[375495186,1753661457850,-1675.79,0.00021917,2]
[375495187,1753661457860,-400.0,0.00021917,2]
[375495188,1753661457869,-460.11,0.00021917,2]
[375495189,1753661457879,-400.0,0.00021917,2]
[375495190,1753661457888,-6098.16,0.00021917,2]
[375495191,1753661457898,-400.0,0.00021917,2]
[375495192,1753661457907,-9529.56,0.00021917,2]
[375495193,1753661457917,-1341.51,0.00021917,2]
[375495194,1753661457926,-2550.22,0.00021917,2]
[375495195,1753661457937,-5374.47,0.00021917,2]
[375495196,1753661457946,-400.0,0.00021917,2]
[375495197,1753661457955,-400.0,0.00021917,2]
[375495198,1753661457965,-942.98,0.00021917,2]
[375495199,1753661457974,-904.97,0.00021917,2]
[375495200,1753661457984,-400.0,0.00021917,2]
[375495201,1753661457995,-500.0,0.00021917,2]
[375495202,1753661458004,-500.0,0.00021917,2]
[375495203,1753661458013,-500.0,0.00021917,2]
[375495204,1753661458022,-500.0,0.00021917,2]
[375495205,1753661458032,-401.0006826,0.00021917,2]
[375495206,1753661458041,-1827.59,0.00021917,2]
[375495207,1753661458051,-500.0,0.00021917,2]
[375495208,1753661458060,-500.0,0.00021917,2]
[375495209,1753661458071,-2307.26,0.00021917,2]
[375495210,1753661458080,-500.0,0.00021917,2]
[375495211,1753661458089,-400.0,0.00021917,2]
[375495212,1753661458103,-500.0,0.00021917,2]
[375495213,1753661458112,-500.0,0.00021917,2]
[375495214,1753661458122,-4993.97,0.00021917,2]
[375495215,1753661458131,-9286.74,0.00021917,2]
[375495216,1753661458141,-500.0,0.00021917,2]
[375495217,1753661458150,-5838.46,0.00021917,2]
[375495218,1753661458160,-827.3,0.00021917,2]
[375495219,1753661458170,-500.0,0.00021917,2]
[375495220,1753661458179,-500.0,0.00021917,2]
[375495221,1753661458189,-400.0,0.00021917,2]
[375495222,1753661458198,-500.0,0.00021917,2]
[375495223,1753661458208,-400.0,0.00021917,2]
[375495224,1753661458218,-500.0,0.00021917,2]
[375495225,1753661458227,-400.0,0.00021917,2]
[375495226,1753661458237,-500.0,0.00021917,2]
[375495227,1753661458246,-8793.62,0.00021917,2]
[375495228,1753661458256,-5854.42,0.00021917,2]
[375495229,1753661458265,-19464.25,0.00021917,2]
[375495230,1753661458275,-15758.87,0.00021917,2]
[375495231,1753661458284,-1581.11,0.00021917,2]
[375495232,1753661458294,-400.0,0.00021917,2]
[375495233,1753661458303,-1823.29,0.00021917,2]
[375495234,1753661458313,-501.76389538,0.00021917,2]
[375495235,1753661458322,-954.836743,0.00021917,2]
[375495236,1753661458331,-162.320912,0.00021917,2]
[375495237,1753661458341,-5581.27,0.00021917,2]
[375495238,1753661458351,-2098.11,0.00021917,2]
[375495239,1753661458360,-515.96707882,0.00021917,2]
[375495240,1753661458369,-500.0,0.00021917,2]
[375495241,1753661458380,-520.00489422,0.00021917,2]
[375495242,1753661458390,-150.291621,0.00021917,2]
[375495243,1753661458399,-400.0,0.00021917,2]
[375495244,1753661458408,-400.0,0.00021917,2]
[375495245,1753661458418,-400.0,0.00021917,2]
[375495246,1753661458428,-500.0,0.00021917,2]
[375495247,1753661458437,-500.0,0.00021917,2]
[375495248,1753661458447,-661.22,0.00021917,2]
[375495249,1753661458457,-400.0,0.00021917,2]
[375495250,1753661458466,-3463.0,0.00021917,2]
[375495251,1753661458476,-400.0,0.00021917,2]
[375495252,1753661458486,-427.64,0.00021917,2]
[375495253,1753661458495,-400.0,0.00021917,2]
[375495254,1753661458505,-506.3698685,0.00021917,2]
[375495255,1753661458514,-400.0,0.00021917,2]
[375495256,1753661458524,-1258.34,0.00021917,2]
[375495257,1753661458539,-2247.92,0.00021917,2]
[375495258,1753661458549,-523.84,0.00021917,2]
[375495259,1753661458558,-498.97,0.00021917,2]
[375495260,1753661458568,-8240.32,0.00021917,2]
[375495261,1753661458579,-859.84,0.00021917,2]
[375495262,1753661458588,-302.77374249,0.00021917,2]
[375495263,1753661458598,-3156.93,0.00021917,2]
[375495264,1753661458607,-207.22665822,0.00021917,2]
[375495265,1753661458617,-12289.86,0.00021917,2]
[375495266,1753661458627,-400.0,0.00021917,2]
[375495267,1753661458636,-400.0,0.00021917,2]
[375495268,1753661458646,-400.0,0.00021917,2]
[375495269,1753661458655,-4691.95,0.00021917,2]
[375495270,1753661458665,-400.0,0.00021917,2]
[375495271,1753661458674,-2231.29,0.00021917,2]
[375495272,1753661458684,-12092.59,0.00021917,2]
[375495273,1753661458694,-400.0,0.00021917,2]
[375495274,1753661458704,-400.0,0.00021917,2]
[375495275,1753661458713,-400.0,0.00021917,2]
[375495276,1753661458722,-401.30583931,0.00021917,2]
[375495277,1753661458732,-400.0,0.00021917,2]
[375495278,1753661458741,-1531.17,0.00021917,2]
[375495279,1753661458751,-1655.69,0.00021917,2]
[375495280,1753661458760,-400.0,0.00021917,2]
[375495281,1753661458770,-1950.1,0.00021917,2]
[375495282,1753661458779,-3093.07,0.00021917,2]
[375495283,1753661458788,-400.0,0.00021917,2]